{"text_format":"1","workbook":"xlsx","n_sheets":3,"sheets":["Tabelle1","Tabelle2","Tabelle3"],"not_rendered":{"charts":7,"images":0,"macros":1,"external_links":0,"defined_names":28,"comments":0,"pivot_tables":0},"unopened":[],"bounds":{"document_bytes":16777216,"sheet_cells":100000,"rows_first":2000,"rows_last":500,"rows_between":2000,"halvings":0,"cell_chars":16384,"cell_head_chars":4096},"cells_cut":0,"cells_raw":0,"read":"whole","date_system":"1900"}

{"sheet":"Tabelle1","index":0,"n_rows":267,"n_cols":16,"rows_kept":267,"cut":false,"hidden":false,"merged":[]}
["Bogen, FE-Berechnung",null,null,"Steuerparameter"]
["Widerlagerwinkel1 [°]",20,null,"Ansatzgrad p (4<p<8)",5,"Anzahl der Unbekannten",419]
["Widerlagerwinkel2 [°]",160,null,"Anzahl Lastschritte (\"nmax\")",20]
["Mittelradius [m]",5,null,"max. Anzahl Iterationen",50]
["Bogendicke [m]",0.4,null,"Rückinterpolationsgrad (p-1)",{"$f":"p-1","v":4}]
["E_Stein [MN/m²]",4000,null,"nach Theorie II. O. rechnen?",false]
["E_Mörtel [MN/m²]",2000,null,"Keilsteinwinkel [°]",5]
["G_Stein [MN/m²]",4000,null,"Visualisierungsparameter"]
["G_Mörtel [MN/m²]",2000,null,"Skalierfaktor",100]
["Fugenanteil [%]",0.05,null,"Elemente zeichnen?",false]
["Druckfestigkeit beta_MW  [MN/m²]",2,null,"Anzahl Visualisierungspunkte/Element",20]
["Steindichte [kg/m³]",1834.86,null,"fester Beobachter bei Winkel [° ]",90]
["Mörteldichte [kg/m³]",1834.86,null,"Datenausgabe bei delta_phi [°]",1]
[]
["Randbedingungen:",null,null,"Lasten:",null,"Hinterfüllung:"]
["ux-1 [m]",0,null,"Lastanteil:",{"$f":"SQRT(skala/nmax)","v":0.59160797830996159},"Dichte [kg/m³]",1834.86]
["uy-1 [m]",0,null,"Last (äquiv. Aufschüttung) [m]",3.35,"Höhe yback1 [m]:",0]
["phi-1 [°]",0,null,"von xmin [m]:",-3.2139380000000002,"bei xback1 [m]:",-5]
["ux-2 [m]",0,null,"bis xmax [m]:",-2.5,"Höhe yback2 [m]:",0]
["uy-2 [m]",0,null,null,null,"bei xback2 [m]:",5]
["phi-2 [°]",0]
[]
["Lastschritt (\"skala\")",7]
["Schub [kN]",34.031954353403265,null,"Anzahl Fließgelenke:",4]
[null,null,null,"Fuge Nr.","e [m]","Normalkraft N [kN]"]
["Iteration",31]
["omega",0.5]
["\"energy\"",26.367863899094758]
[]
[]
[]
[]
[]
[]
[]
[]
[]
[]
[]
[]
[]
[]
[]
[]
[]
[]
[]
[]
[]
[]
[]
[]
[]
[]
[]
[]
[]
[]
[]
[]
[]
[]
[null,null,null,"Lastfaktor","Lasthöhe","N","Q","M","ux","vy","H","V","ex","Reibung","Gelenke","iter"]
[]
[]
[]
[]
[]
[]
[]
[]
[]
[]
[]
[]
[]
[]
[]
[]
[]
[]
[]
[]
[]
[]
[]
[]
[]
[]
[]
[]
[]
[]
[]
[]
[]
[]
[]
[]
[]
[]
[]
[]
[]
[]
[]
[]
[]
[]
[]
[]
[]
[]
[]
[]
[]
[]
[]
[]
[]
[]
[]
[]
[]
[]
[]
[]
[]
[]
[]
[]
[]
[]
[]
[]
[]
[]
[]
[]
[]
[]
[]
[]
[]
[]
[]
[]
[]
[]
[]
[]
[]
[]
[]
[]
[]
[]
[]
[]
[]
[]
[]
[]
[]
[]
[]
[]
[]
[]
[]
[]
[]
[]
[]
[]
[]
[]
[]
[]
[]
[]
[]
[]
[]
[]
[]
[]
[]
[]
[]
[]
[]
[]
[]
[]
[]
[]
[]
[]
[]
[]
[]
[]
[]
[]
[]
[]
[]
[]
[]
[]
[]
[]
[]
[]
[]
[]
[]
[]
[]
[]
[]
[]
[]
[]
[]
[]
[]
[]
[]
[]
[]
[]
[]
[]
[]
[]
[]
[]
[]
[]
[]
[]
[]
[]
[]
[]
[]
[]
[]
[]
[]
[]
[]
[]
[]
[]
[]
[]
[]
[]
[]
[]
[]
[]
[]
[null,0.1]

{"sheet":"Tabelle2","index":1,"n_rows":0,"n_cols":0,"rows_kept":0,"cut":false,"hidden":false,"merged":[]}

{"sheet":"Tabelle3","index":2,"n_rows":380,"n_cols":15,"rows_kept":380,"cut":false,"hidden":false,"merged":[]}
["ibeob","phibeob","ielem","s","ux","uy","N","M","Q","ex","Schub","Vertikalkraft","Druckzone","Reibung"]
[null,null,null,null,null,null,null,null,null,null,null,null,null,{"$f":"ABS(I2/G2)","v":{"$error":"#DIV/0!"}},{"$f":"B2-90","v":-90}]
[null,null,null,null,null,null,null,null,null,null,null,null,null,{"$f":"ABS(I3/G3)","v":{"$error":"#DIV/0!"}},{"$f":"B3-90","v":-90}]
[null,null,null,null,null,null,null,null,null,null,null,null,null,{"$error":"#DIV/0!"},-90]
[null,null,null,null,null,null,null,null,null,null,null,null,null,{"$error":"#DIV/0!"},-90]
[null,null,null,null,null,null,null,null,null,null,null,null,null,{"$error":"#DIV/0!"},-90]
[null,null,null,null,null,null,null,null,null,null,null,null,null,{"$error":"#DIV/0!"},-90]
[null,null,null,null,null,null,null,null,null,null,null,null,null,{"$error":"#DIV/0!"},-90]
[null,null,null,null,null,null,null,null,null,null,null,null,null,{"$error":"#DIV/0!"},-90]
[null,null,null,null,null,null,null,null,null,null,null,null,null,{"$error":"#DIV/0!"},-90]
[null,null,null,null,null,null,null,null,null,null,null,null,null,{"$error":"#DIV/0!"},-90]
[null,null,null,null,null,null,null,null,null,null,null,null,null,{"$error":"#DIV/0!"},-90]
[null,null,null,null,null,null,null,null,null,null,null,null,null,{"$error":"#DIV/0!"},-90]
[null,null,null,null,null,null,null,null,null,null,null,null,null,{"$error":"#DIV/0!"},-90]
[null,null,null,null,null,null,null,null,null,null,null,null,null,{"$error":"#DIV/0!"},-90]
[null,null,null,null,null,null,null,null,null,null,null,null,null,{"$error":"#DIV/0!"},-90]
[null,null,null,null,null,null,null,null,null,null,null,null,null,{"$error":"#DIV/0!"},-90]
[null,null,null,null,null,null,null,null,null,null,null,null,null,{"$error":"#DIV/0!"},-90]
[null,null,null,null,null,null,null,null,null,null,null,null,null,{"$error":"#DIV/0!"},-90]
[null,null,null,null,null,null,null,null,null,null,null,null,null,{"$error":"#DIV/0!"},-90]
[null,null,null,null,null,null,null,null,null,null,null,null,null,{"$error":"#DIV/0!"},-90]
[null,null,null,null,null,null,null,null,null,null,null,null,null,{"$error":"#DIV/0!"},-90]
[null,null,null,null,null,null,null,null,null,null,null,null,null,{"$error":"#DIV/0!"},-90]
[null,null,null,null,null,null,null,null,null,null,null,null,null,{"$error":"#DIV/0!"},-90]
[null,null,null,null,null,null,null,null,null,null,null,null,null,{"$error":"#DIV/0!"},-90]
[null,null,null,null,null,null,null,null,null,null,null,null,null,{"$error":"#DIV/0!"},-90]
[null,null,null,null,null,null,null,null,null,null,null,null,null,{"$error":"#DIV/0!"},-90]
[null,null,null,null,null,null,null,null,null,null,null,null,null,{"$error":"#DIV/0!"},-90]
[null,null,null,null,null,null,null,null,null,null,null,null,null,{"$error":"#DIV/0!"},-90]
[null,null,null,null,null,null,null,null,null,null,null,null,null,{"$error":"#DIV/0!"},-90]
[null,null,null,null,null,null,null,null,null,null,null,null,null,{"$error":"#DIV/0!"},-90]
[null,null,null,null,null,null,null,null,null,null,null,null,null,{"$error":"#DIV/0!"},-90]
[null,null,null,null,null,null,null,null,null,null,null,null,null,{"$error":"#DIV/0!"},-90]
[null,null,null,null,null,null,null,null,null,null,null,null,null,{"$error":"#DIV/0!"},-90]
[null,null,null,null,null,null,null,null,null,null,null,null,null,{"$error":"#DIV/0!"},-90]
[null,null,null,null,null,null,null,null,null,null,null,null,null,{"$error":"#DIV/0!"},-90]
[null,null,null,null,null,null,null,null,null,null,null,null,null,{"$error":"#DIV/0!"},-90]
[null,null,null,null,null,null,null,null,null,null,null,null,null,{"$error":"#DIV/0!"},-90]
[null,null,null,null,null,null,null,null,null,null,null,null,null,{"$error":"#DIV/0!"},-90]
[null,null,null,null,null,null,null,null,null,null,null,null,null,{"$error":"#DIV/0!"},-90]
[null,null,null,null,null,null,null,null,null,null,null,null,null,{"$error":"#DIV/0!"},-90]
[null,null,null,null,null,null,null,null,null,null,null,null,null,{"$error":"#DIV/0!"},-90]
[null,null,null,null,null,null,null,null,null,null,null,null,null,{"$error":"#DIV/0!"},-90]
[null,null,null,null,null,null,null,null,null,null,null,null,null,{"$error":"#DIV/0!"},-90]
[null,null,null,null,null,null,null,null,null,null,null,null,null,{"$error":"#DIV/0!"},-90]
[null,null,null,null,null,null,null,null,null,null,null,null,null,{"$error":"#DIV/0!"},-90]
[null,null,null,null,null,null,null,null,null,null,null,null,null,{"$error":"#DIV/0!"},-90]
[null,null,null,null,null,null,null,null,null,null,null,null,null,{"$error":"#DIV/0!"},-90]
[null,null,null,null,null,null,null,null,null,null,null,null,null,{"$error":"#DIV/0!"},-90]
[null,null,null,null,null,null,null,null,null,null,null,null,null,{"$error":"#DIV/0!"},-90]
[null,null,null,null,null,null,null,null,null,null,null,null,null,{"$error":"#DIV/0!"},-90]
[null,null,null,null,null,null,null,null,null,null,null,null,null,{"$error":"#DIV/0!"},-90]
[null,null,null,null,null,null,null,null,null,null,null,null,null,{"$error":"#DIV/0!"},-90]
[null,null,null,null,null,null,null,null,null,null,null,null,null,{"$error":"#DIV/0!"},-90]
[null,null,null,null,null,null,null,null,null,null,null,null,null,{"$error":"#DIV/0!"},-90]
[null,null,null,null,null,null,null,null,null,null,null,null,null,{"$error":"#DIV/0!"},-90]
[null,null,null,null,null,null,null,null,null,null,null,null,null,{"$error":"#DIV/0!"},-90]
[null,null,null,null,null,null,null,null,null,null,null,null,null,{"$error":"#DIV/0!"},-90]
[null,null,null,null,null,null,null,null,null,null,null,null,null,{"$error":"#DIV/0!"},-90]
[null,null,null,null,null,null,null,null,null,null,null,null,null,{"$error":"#DIV/0!"},-90]
[null,null,null,null,null,null,null,null,null,null,null,null,null,{"$error":"#DIV/0!"},-90]
[null,null,null,null,null,null,null,null,null,null,null,null,null,{"$error":"#DIV/0!"},-90]
[null,null,null,null,null,null,null,null,null,null,null,null,null,{"$error":"#DIV/0!"},-90]
[null,null,null,null,null,null,null,null,null,null,null,null,null,{"$error":"#DIV/0!"},-90]
[null,null,null,null,null,null,null,null,null,null,null,null,null,{"$error":"#DIV/0!"},-90]
[null,null,null,null,null,null,null,null,null,null,null,null,null,{"$error":"#DIV/0!"},-90]
[null,null,null,null,null,null,null,null,null,null,null,null,null,{"$f":"ABS(I67/G67)","v":{"$error":"#DIV/0!"}},{"$f":"B67-90","v":-90}]
[null,null,null,null,null,null,null,null,null,null,null,null,null,{"$error":"#DIV/0!"},-90]
[null,null,null,null,null,null,null,null,null,null,null,null,null,{"$error":"#DIV/0!"},-90]
[null,null,null,null,null,null,null,null,null,null,null,null,null,{"$error":"#DIV/0!"},-90]
[null,null,null,null,null,null,null,null,null,null,null,null,null,{"$error":"#DIV/0!"},-90]
[null,null,null,null,null,null,null,null,null,null,null,null,null,{"$error":"#DIV/0!"},-90]
[null,null,null,null,null,null,null,null,null,null,null,null,null,{"$error":"#DIV/0!"},-90]
[null,null,null,null,null,null,null,null,null,null,null,null,null,{"$error":"#DIV/0!"},-90]
[null,null,null,null,null,null,null,null,null,null,null,null,null,{"$error":"#DIV/0!"},-90]
[null,null,null,null,null,null,null,null,null,null,null,null,null,{"$error":"#DIV/0!"},-90]
[null,null,null,null,null,null,null,null,null,null,null,null,null,{"$error":"#DIV/0!"},-90]
[null,null,null,null,null,null,null,null,null,null,null,null,null,{"$error":"#DIV/0!"},-90]
[null,null,null,null,null,null,null,null,null,null,null,null,null,{"$error":"#DIV/0!"},-90]
[null,null,null,null,null,null,null,null,null,null,null,null,null,{"$error":"#DIV/0!"},-90]
[null,null,null,null,null,null,null,null,null,null,null,null,null,{"$error":"#DIV/0!"},-90]
[null,null,null,null,null,null,null,null,null,null,null,null,null,{"$error":"#DIV/0!"},-90]
[null,null,null,null,null,null,null,null,null,null,null,null,null,{"$error":"#DIV/0!"},-90]
[null,null,null,null,null,null,null,null,null,null,null,null,null,{"$error":"#DIV/0!"},-90]
[null,null,null,null,null,null,null,null,null,null,null,null,null,{"$error":"#DIV/0!"},-90]
[null,null,null,null,null,null,null,null,null,null,null,null,null,{"$error":"#DIV/0!"},-90]
[null,null,null,null,null,null,null,null,null,null,null,null,null,{"$error":"#DIV/0!"},-90]
[null,null,null,null,null,null,null,null,null,null,null,null,null,{"$error":"#DIV/0!"},-90]
[null,null,null,null,null,null,null,null,null,null,null,null,null,{"$error":"#DIV/0!"},-90]
[null,null,null,null,null,null,null,null,null,null,null,null,null,{"$error":"#DIV/0!"},-90]
[null,null,null,null,null,null,null,null,null,null,null,null,null,{"$error":"#DIV/0!"},-90]
[null,null,null,null,null,null,null,null,null,null,null,null,null,{"$error":"#DIV/0!"},-90]
[null,null,null,null,null,null,null,null,null,null,null,null,null,{"$error":"#DIV/0!"},-90]
[null,null,null,null,null,null,null,null,null,null,null,null,null,{"$error":"#DIV/0!"},-90]
[null,null,null,null,null,null,null,null,null,null,null,null,null,{"$error":"#DIV/0!"},-90]
[null,null,null,null,null,null,null,null,null,null,null,null,null,{"$error":"#DIV/0!"},-90]
[null,null,null,null,null,null,null,null,null,null,null,null,null,{"$error":"#DIV/0!"},-90]
[null,null,null,null,null,null,null,null,null,null,null,null,null,{"$error":"#DIV/0!"},-90]
[null,null,null,null,null,null,null,null,null,null,null,null,null,{"$error":"#DIV/0!"},-90]
[null,null,null,null,null,null,null,null,null,null,null,null,null,{"$error":"#DIV/0!"},-90]
[null,null,null,null,null,null,null,null,null,null,null,null,null,{"$error":"#DIV/0!"},-90]
[null,null,null,null,null,null,null,null,null,null,null,null,null,{"$error":"#DIV/0!"},-90]
[null,null,null,null,null,null,null,null,null,null,null,null,null,{"$error":"#DIV/0!"},-90]
[null,null,null,null,null,null,null,null,null,null,null,null,null,{"$error":"#DIV/0!"},-90]
[null,null,null,null,null,null,null,null,null,null,null,null,null,{"$error":"#DIV/0!"},-90]
[null,null,null,null,null,null,null,null,null,null,null,null,null,{"$error":"#DIV/0!"},-90]
[null,null,null,null,null,null,null,null,null,null,null,null,null,{"$error":"#DIV/0!"},-90]
[null,null,null,null,null,null,null,null,null,null,null,null,null,{"$error":"#DIV/0!"},-90]
[null,null,null,null,null,null,null,null,null,null,null,null,null,{"$error":"#DIV/0!"},-90]
[null,null,null,null,null,null,null,null,null,null,null,null,null,{"$error":"#DIV/0!"},-90]
[null,null,null,null,null,null,null,null,null,null,null,null,null,{"$error":"#DIV/0!"},-90]
[null,null,null,null,null,null,null,null,null,null,null,null,null,{"$error":"#DIV/0!"},-90]
[null,null,null,null,null,null,null,null,null,null,null,null,null,{"$error":"#DIV/0!"},-90]
[null,null,null,null,null,null,null,null,null,null,null,null,null,{"$error":"#DIV/0!"},-90]
[null,null,null,null,null,null,null,null,null,null,null,null,null,{"$error":"#DIV/0!"},-90]
[null,null,null,null,null,null,null,null,null,null,null,null,null,{"$error":"#DIV/0!"},-90]
[null,null,null,null,null,null,null,null,null,null,null,null,null,{"$error":"#DIV/0!"},-90]
[null,null,null,null,null,null,null,null,null,null,null,null,null,{"$error":"#DIV/0!"},-90]
[null,null,null,null,null,null,null,null,null,null,null,null,null,{"$error":"#DIV/0!"},-90]
[null,null,null,null,null,null,null,null,null,null,null,null,null,{"$error":"#DIV/0!"},-90]
[null,null,null,null,null,null,null,null,null,null,null,null,null,{"$error":"#DIV/0!"},-90]
[null,null,null,null,null,null,null,null,null,null,null,null,null,{"$error":"#DIV/0!"},-90]
[null,null,null,null,null,null,null,null,null,null,null,null,null,{"$error":"#DIV/0!"},-90]
[null,null,null,null,null,null,null,null,null,null,null,null,null,{"$error":"#DIV/0!"},-90]
[null,null,null,null,null,null,null,null,null,null,null,null,null,{"$error":"#DIV/0!"},-90]
[null,null,null,null,null,null,null,null,null,null,null,null,null,{"$error":"#DIV/0!"},-90]
[null,null,null,null,null,null,null,null,null,null,null,null,null,{"$error":"#DIV/0!"},-90]
[null,null,null,null,null,null,null,null,null,null,null,null,null,{"$error":"#DIV/0!"},-90]
[null,null,null,null,null,null,null,null,null,null,null,null,null,{"$error":"#DIV/0!"},-90]
[null,null,null,null,null,null,null,null,null,null,null,null,null,{"$error":"#DIV/0!"},-90]
[null,null,null,null,null,null,null,null,null,null,null,null,null,{"$f":"ABS(I131/G131)","v":{"$error":"#DIV/0!"}},{"$f":"B131-90","v":-90}]
[null,null,null,null,null,null,null,null,null,null,null,null,null,{"$error":"#DIV/0!"},-90]
[null,null,null,null,null,null,null,null,null,null,null,null,null,{"$error":"#DIV/0!"},-90]
[null,null,null,null,null,null,null,null,null,null,null,null,null,{"$error":"#DIV/0!"},-90]
[null,null,null,null,null,null,null,null,null,null,null,null,null,{"$error":"#DIV/0!"},-90]
[null,null,null,null,null,null,null,null,null,null,null,null,null,{"$error":"#DIV/0!"},-90]
[null,null,null,null,null,null,null,null,null,null,null,null,null,{"$error":"#DIV/0!"},-90]
[null,null,null,null,null,null,null,null,null,null,null,null,null,{"$error":"#DIV/0!"},-90]
[null,null,null,null,null,null,null,null,null,null,null,null,null,{"$error":"#DIV/0!"},-90]
[null,null,null,null,null,null,null,null,null,null,null,null,null,{"$error":"#DIV/0!"},-90]
[null,null,null,null,null,null,null,null,null,null,null,null,null,{"$error":"#DIV/0!"},-90]
[null,null,null,null,null,null,null,null,null,null,null,null,null,{"$error":"#DIV/0!"},-90]
[null,null,null,null,null,null,null,null,null,null,null,null,null,{"$error":"#DIV/0!"},-90]
[null,null,null,null,null,null,null,null,null,null,null,null,null,{"$error":"#DIV/0!"},-90]
[null,null,null,null,null,null,null,null,null,null,null,null,null,{"$error":"#DIV/0!"},-90]
[null,null,null,null,null,null,null,null,null,null,null,null,null,{"$error":"#DIV/0!"},-90]
[null,null,null,null,null,null,null,null,null,null,null,null,null,{"$error":"#DIV/0!"},-90]
[null,null,null,null,null,null,null,null,null,null,null,null,null,{"$error":"#DIV/0!"},-90]
[null,null,null,null,null,null,null,null,null,null,null,null,null,{"$error":"#DIV/0!"},-90]
[null,null,null,null,null,null,null,null,null,null,null,null,null,{"$error":"#DIV/0!"},-90]
[null,null,null,null,null,null,null,null,null,null,null,null,null,{"$error":"#DIV/0!"},-90]
[null,null,null,null,null,null,null,null,null,null,null,null,null,{"$error":"#DIV/0!"},-90]
[null,null,null,null,null,null,null,null,null,null,null,null,null,{"$error":"#DIV/0!"},-90]
[null,null,null,null,null,null,null,null,null,null,null,null,null,{"$error":"#DIV/0!"},-90]
[null,null,null,null,null,null,null,null,null,null,null,null,null,{"$error":"#DIV/0!"},-90]
[null,null,null,null,null,null,null,null,null,null,null,null,null,{"$error":"#DIV/0!"},-90]
[null,null,null,null,null,null,null,null,null,null,null,null,null,{"$error":"#DIV/0!"},-90]
[null,null,null,null,null,null,null,null,null,null,null,null,null,{"$error":"#DIV/0!"},-90]
[null,null,null,null,null,null,null,null,null,null,null,null,null,{"$error":"#DIV/0!"},-90]
[null,null,null,null,null,null,null,null,null,null,null,null,null,{"$error":"#DIV/0!"},-90]
[null,null,null,null,null,null,null,null,null,null,null,null,null,{"$error":"#DIV/0!"},-90]
[null,null,null,null,null,null,null,null,null,null,null,null,null,{"$error":"#DIV/0!"},-90]
[null,null,null,null,null,null,null,null,null,null,null,null,null,{"$error":"#DIV/0!"},-90]
[null,null,null,null,null,null,null,null,null,null,null,null,null,{"$error":"#DIV/0!"},-90]
[null,null,null,null,null,null,null,null,null,null,null,null,null,{"$error":"#DIV/0!"},-90]
[null,null,null,null,null,null,null,null,null,null,null,null,null,{"$error":"#DIV/0!"},-90]
[null,null,null,null,null,null,null,null,null,null,null,null,null,{"$error":"#DIV/0!"},-90]
[null,null,null,null,null,null,null,null,null,null,null,null,null,{"$error":"#DIV/0!"},-90]
[null,null,null,null,null,null,null,null,null,null,null,null,null,{"$error":"#DIV/0!"},-90]
[null,null,null,null,null,null,null,null,null,null,null,null,null,{"$error":"#DIV/0!"},-90]
[null,null,null,null,null,null,null,null,null,null,null,null,null,{"$error":"#DIV/0!"},-90]
[null,null,null,null,null,null,null,null,null,null,null,null,null,{"$error":"#DIV/0!"},-90]
[null,null,null,null,null,null,null,null,null,null,null,null,null,{"$error":"#DIV/0!"},-90]
[null,null,null,null,null,null,null,null,null,null,null,null,null,{"$error":"#DIV/0!"},-90]
[null,null,null,null,null,null,null,null,null,null,null,null,null,{"$error":"#DIV/0!"},-90]
[null,null,null,null,null,null,null,null,null,null,null,null,null,{"$error":"#DIV/0!"},-90]
[null,null,null,null,null,null,null,null,null,null,null,null,null,{"$error":"#DIV/0!"},-90]
[null,null,null,null,null,null,null,null,null,null,null,null,null,{"$error":"#DIV/0!"},-90]
[null,null,null,null,null,null,null,null,null,null,null,null,null,{"$error":"#DIV/0!"},-90]
[null,null,null,null,null,null,null,null,null,null,null,null,null,{"$error":"#DIV/0!"},-90]
[null,null,null,null,null,null,null,null,null,null,null,null,null,{"$error":"#DIV/0!"},-90]
[null,null,null,null,null,null,null,null,null,null,null,null,null,{"$error":"#DIV/0!"},-90]
[null,null,null,null,null,null,null,null,null,null,null,null,null,{"$error":"#DIV/0!"},-90]
[null,null,null,null,null,null,null,null,null,null,null,null,null,{"$error":"#DIV/0!"},-90]
[null,null,null,null,null,null,null,null,null,null,null,null,null,{"$error":"#DIV/0!"},-90]
[null,null,null,null,null,null,null,null,null,null,null,null,null,{"$error":"#DIV/0!"},-90]
[null,null,null,null,null,null,null,null,null,null,null,null,null,{"$error":"#DIV/0!"},-90]
[null,null,null,null,null,null,null,null,null,null,null,null,null,{"$error":"#DIV/0!"},-90]
[null,null,null,null,null,null,null,null,null,null,null,null,null,{"$error":"#DIV/0!"},-90]
[null,null,null,null,null,null,null,null,null,null,null,null,null,{"$error":"#DIV/0!"},-90]
[null,null,null,null,null,null,null,null,null,null,null,null,null,{"$error":"#DIV/0!"},-90]
[null,null,null,null,null,null,null,null,null,null,null,null,null,{"$error":"#DIV/0!"},-90]
[null,null,null,null,null,null,null,null,null,null,null,null,null,{"$error":"#DIV/0!"},-90]
[null,null,null,null,null,null,null,null,null,null,null,null,null,{"$error":"#DIV/0!"},-90]
[null,null,null,null,null,null,null,null,null,null,null,null,null,{"$f":"ABS(I195/G195)","v":{"$error":"#DIV/0!"}},{"$f":"B195-90","v":-90}]
[null,null,null,null,null,null,null,null,null,null,null,null,null,{"$error":"#DIV/0!"},-90]
[null,null,null,null,null,null,null,null,null,null,null,null,null,{"$error":"#DIV/0!"},-90]
[null,null,null,null,null,null,null,null,null,null,null,null,null,{"$error":"#DIV/0!"},-90]
[null,null,null,null,null,null,null,null,null,null,null,null,null,{"$error":"#DIV/0!"},-90]
[null,null,null,null,null,null,null,null,null,null,null,null,null,{"$error":"#DIV/0!"},-90]
[null,null,null,null,null,null,null,null,null,null,null,null,null,{"$error":"#DIV/0!"},-90]
[null,null,null,null,null,null,null,null,null,null,null,null,null,{"$error":"#DIV/0!"},-90]
[null,null,null,null,null,null,null,null,null,null,null,null,null,{"$error":"#DIV/0!"},-90]
[null,null,null,null,null,null,null,null,null,null,null,null,null,{"$error":"#DIV/0!"},-90]
[null,null,null,null,null,null,null,null,null,null,null,null,null,{"$error":"#DIV/0!"},-90]
[null,null,null,null,null,null,null,null,null,null,null,null,null,{"$error":"#DIV/0!"},-90]
[null,null,null,null,null,null,null,null,null,null,null,null,null,{"$error":"#DIV/0!"},-90]
[null,null,null,null,null,null,null,null,null,null,null,null,null,{"$error":"#DIV/0!"},-90]
[null,null,null,null,null,null,null,null,null,null,null,null,null,{"$error":"#DIV/0!"},-90]
[null,null,null,null,null,null,null,null,null,null,null,null,null,{"$error":"#DIV/0!"},-90]
[null,null,null,null,null,null,null,null,null,null,null,null,null,{"$error":"#DIV/0!"},-90]
[null,null,null,null,null,null,null,null,null,null,null,null,null,{"$error":"#DIV/0!"},-90]
[null,null,null,null,null,null,null,null,null,null,null,null,null,{"$error":"#DIV/0!"},-90]
[null,null,null,null,null,null,null,null,null,null,null,null,null,{"$error":"#DIV/0!"},-90]
[null,null,null,null,null,null,null,null,null,null,null,null,null,{"$error":"#DIV/0!"},-90]
[null,null,null,null,null,null,null,null,null,null,null,null,null,{"$error":"#DIV/0!"},-90]
[null,null,null,null,null,null,null,null,null,null,null,null,null,{"$error":"#DIV/0!"},-90]
[null,null,null,null,null,null,null,null,null,null,null,null,null,{"$error":"#DIV/0!"},-90]
[null,null,null,null,null,null,null,null,null,null,null,null,null,{"$error":"#DIV/0!"},-90]
[null,null,null,null,null,null,null,null,null,null,null,null,null,{"$error":"#DIV/0!"},-90]
[null,null,null,null,null,null,null,null,null,null,null,null,null,{"$error":"#DIV/0!"},-90]
[null,null,null,null,null,null,null,null,null,null,null,null,null,{"$error":"#DIV/0!"},-90]
[null,null,null,null,null,null,null,null,null,null,null,null,null,{"$error":"#DIV/0!"},-90]
[null,null,null,null,null,null,null,null,null,null,null,null,null,{"$error":"#DIV/0!"},-90]
[null,null,null,null,null,null,null,null,null,null,null,null,null,{"$error":"#DIV/0!"},-90]
[null,null,null,null,null,null,null,null,null,null,null,null,null,{"$error":"#DIV/0!"},-90]
[null,null,null,null,null,null,null,null,null,null,null,null,null,{"$error":"#DIV/0!"},-90]
[null,null,null,null,null,null,null,null,null,null,null,null,null,{"$error":"#DIV/0!"},-90]
[null,null,null,null,null,null,null,null,null,null,null,null,null,{"$error":"#DIV/0!"},-90]
[null,null,null,null,null,null,null,null,null,null,null,null,null,{"$error":"#DIV/0!"},-90]
[null,null,null,null,null,null,null,null,null,null,null,null,null,{"$error":"#DIV/0!"},-90]
[null,null,null,null,null,null,null,null,null,null,null,null,null,{"$error":"#DIV/0!"},-90]
[null,null,null,null,null,null,null,null,null,null,null,null,null,{"$error":"#DIV/0!"},-90]
[null,null,null,null,null,null,null,null,null,null,null,null,null,{"$error":"#DIV/0!"},-90]
[null,null,null,null,null,null,null,null,null,null,null,null,null,{"$error":"#DIV/0!"},-90]
[null,null,null,null,null,null,null,null,null,null,null,null,null,{"$error":"#DIV/0!"},-90]
[null,null,null,null,null,null,null,null,null,null,null,null,null,{"$error":"#DIV/0!"},-90]
[null,null,null,null,null,null,null,null,null,null,null,null,null,{"$error":"#DIV/0!"},-90]
[null,null,null,null,null,null,null,null,null,null,null,null,null,{"$error":"#DIV/0!"},-90]
[null,null,null,null,null,null,null,null,null,null,null,null,null,{"$error":"#DIV/0!"},-90]
[null,null,null,null,null,null,null,null,null,null,null,null,null,{"$error":"#DIV/0!"},-90]
[null,null,null,null,null,null,null,null,null,null,null,null,null,{"$error":"#DIV/0!"},-90]
[null,null,null,null,null,null,null,null,null,null,null,null,null,{"$error":"#DIV/0!"},-90]
[null,null,null,null,null,null,null,null,null,null,null,null,null,{"$error":"#DIV/0!"},-90]
[null,null,null,null,null,null,null,null,null,null,null,null,null,{"$error":"#DIV/0!"},-90]
[null,null,null,null,null,null,null,null,null,null,null,null,null,{"$error":"#DIV/0!"},-90]
[null,null,null,null,null,null,null,null,null,null,null,null,null,{"$error":"#DIV/0!"},-90]
[null,null,null,null,null,null,null,null,null,null,null,null,null,{"$error":"#DIV/0!"},-90]
[null,null,null,null,null,null,null,null,null,null,null,null,null,{"$error":"#DIV/0!"},-90]
[null,null,null,null,null,null,null,null,null,null,null,null,null,{"$error":"#DIV/0!"},-90]
[null,null,null,null,null,null,null,null,null,null,null,null,null,{"$error":"#DIV/0!"},-90]
[null,null,null,null,null,null,null,null,null,null,null,null,null,{"$error":"#DIV/0!"},-90]
[null,null,null,null,null,null,null,null,null,null,null,null,null,{"$error":"#DIV/0!"},-90]
[null,null,null,null,null,null,null,null,null,null,null,null,null,{"$error":"#DIV/0!"},-90]
[null,null,null,null,null,null,null,null,null,null,null,null,null,{"$error":"#DIV/0!"},-90]
[null,null,null,null,null,null,null,null,null,null,null,null,null,{"$error":"#DIV/0!"},-90]
[null,null,null,null,null,null,null,null,null,null,null,null,null,{"$error":"#DIV/0!"},-90]
[null,null,null,null,null,null,null,null,null,null,null,null,null,{"$error":"#DIV/0!"},-90]
[null,null,null,null,null,null,null,null,null,null,null,null,null,{"$f":"ABS(I259/G259)","v":{"$error":"#DIV/0!"}},{"$f":"B259-90","v":-90}]
[null,null,null,null,null,null,null,null,null,null,null,null,null,{"$error":"#DIV/0!"},-90]
[null,null,null,null,null,null,null,null,null,null,null,null,null,{"$error":"#DIV/0!"},-90]
[null,null,null,null,null,null,null,null,null,null,null,null,null,{"$error":"#DIV/0!"},-90]
[null,null,null,null,null,null,null,null,null,null,null,null,null,{"$error":"#DIV/0!"},-90]
[null,null,null,null,null,null,null,null,null,null,null,null,null,{"$error":"#DIV/0!"},-90]
[null,null,null,null,null,null,null,null,null,null,null,null,null,{"$error":"#DIV/0!"},-90]
[null,null,null,null,null,null,null,null,null,null,null,null,null,{"$error":"#DIV/0!"},-90]
[null,null,null,null,null,null,null,null,null,null,null,null,null,{"$error":"#DIV/0!"},-90]
[null,null,null,null,null,null,null,null,null,null,null,null,null,{"$error":"#DIV/0!"},-90]
[null,null,null,null,null,null,null,null,null,null,null,null,null,{"$error":"#DIV/0!"},-90]
[null,null,null,null,null,null,null,null,null,null,null,null,null,{"$error":"#DIV/0!"},-90]
[null,null,null,null,null,null,null,null,null,null,null,null,null,{"$error":"#DIV/0!"},-90]
[null,null,null,null,null,null,null,null,null,null,null,null,null,{"$error":"#DIV/0!"},-90]
[null,null,null,null,null,null,null,null,null,null,null,null,null,{"$error":"#DIV/0!"},-90]
[null,null,null,null,null,null,null,null,null,null,null,null,null,{"$error":"#DIV/0!"},-90]
[null,null,null,null,null,null,null,null,null,null,null,null,null,{"$error":"#DIV/0!"},-90]
[null,null,null,null,null,null,null,null,null,null,null,null,null,{"$error":"#DIV/0!"},-90]
[null,null,null,null,null,null,null,null,null,null,null,null,null,{"$error":"#DIV/0!"},-90]
[null,null,null,null,null,null,null,null,null,null,null,null,null,{"$error":"#DIV/0!"},-90]
[null,null,null,null,null,null,null,null,null,null,null,null,null,{"$error":"#DIV/0!"},-90]
[null,null,null,null,null,null,null,null,null,null,null,null,null,{"$error":"#DIV/0!"},-90]
[null,null,null,null,null,null,null,null,null,null,null,null,null,{"$error":"#DIV/0!"},-90]
[null,null,null,null,null,null,null,null,null,null,null,null,null,{"$error":"#DIV/0!"},-90]
[null,null,null,null,null,null,null,null,null,null,null,null,null,{"$error":"#DIV/0!"},-90]
[null,null,null,null,null,null,null,null,null,null,null,null,null,{"$error":"#DIV/0!"},-90]
[null,null,null,null,null,null,null,null,null,null,null,null,null,{"$error":"#DIV/0!"},-90]
[null,null,null,null,null,null,null,null,null,null,null,null,null,{"$error":"#DIV/0!"},-90]
[null,null,null,null,null,null,null,null,null,null,null,null,null,{"$error":"#DIV/0!"},-90]
[null,null,null,null,null,null,null,null,null,null,null,null,null,{"$error":"#DIV/0!"},-90]
[null,null,null,null,null,null,null,null,null,null,null,null,null,{"$error":"#DIV/0!"},-90]
[null,null,null,null,null,null,null,null,null,null,null,null,null,{"$error":"#DIV/0!"},-90]
[null,null,null,null,null,null,null,null,null,null,null,null,null,{"$error":"#DIV/0!"},-90]
[null,null,null,null,null,null,null,null,null,null,null,null,null,{"$error":"#DIV/0!"},-90]
[null,null,null,null,null,null,null,null,null,null,null,null,null,{"$error":"#DIV/0!"},-90]
[null,null,null,null,null,null,null,null,null,null,null,null,null,{"$error":"#DIV/0!"},-90]
[null,null,null,null,null,null,null,null,null,null,null,null,null,{"$error":"#DIV/0!"},-90]
[null,null,null,null,null,null,null,null,null,null,null,null,null,{"$error":"#DIV/0!"},-90]
[null,null,null,null,null,null,null,null,null,null,null,null,null,{"$error":"#DIV/0!"},-90]
[null,null,null,null,null,null,null,null,null,null,null,null,null,{"$error":"#DIV/0!"},-90]
[null,null,null,null,null,null,null,null,null,null,null,null,null,{"$error":"#DIV/0!"},-90]
[null,null,null,null,null,null,null,null,null,null,null,null,null,{"$error":"#DIV/0!"},-90]
[null,null,null,null,null,null,null,null,null,null,null,null,null,{"$error":"#DIV/0!"},-90]
[null,null,null,null,null,null,null,null,null,null,null,null,null,{"$error":"#DIV/0!"},-90]
[null,null,null,null,null,null,null,null,null,null,null,null,null,{"$error":"#DIV/0!"},-90]
[null,null,null,null,null,null,null,null,null,null,null,null,null,{"$error":"#DIV/0!"},-90]
[null,null,null,null,null,null,null,null,null,null,null,null,null,{"$error":"#DIV/0!"},-90]
[null,null,null,null,null,null,null,null,null,null,null,null,null,{"$error":"#DIV/0!"},-90]
[null,null,null,null,null,null,null,null,null,null,null,null,null,{"$error":"#DIV/0!"},-90]
[null,null,null,null,null,null,null,null,null,null,null,null,null,{"$error":"#DIV/0!"},-90]
[null,null,null,null,null,null,null,null,null,null,null,null,null,{"$error":"#DIV/0!"},-90]
[null,null,null,null,null,null,null,null,null,null,null,null,null,{"$error":"#DIV/0!"},-90]
[null,null,null,null,null,null,null,null,null,null,null,null,null,{"$error":"#DIV/0!"},-90]
[null,null,null,null,null,null,null,null,null,null,null,null,null,{"$error":"#DIV/0!"},-90]
[null,null,null,null,null,null,null,null,null,null,null,null,null,{"$error":"#DIV/0!"},-90]
[null,null,null,null,null,null,null,null,null,null,null,null,null,{"$error":"#DIV/0!"},-90]
[null,null,null,null,null,null,null,null,null,null,null,null,null,{"$error":"#DIV/0!"},-90]
[null,null,null,null,null,null,null,null,null,null,null,null,null,{"$error":"#DIV/0!"},-90]
[null,null,null,null,null,null,null,null,null,null,null,null,null,{"$error":"#DIV/0!"},-90]
[null,null,null,null,null,null,null,null,null,null,null,null,null,{"$error":"#DIV/0!"},-90]
[null,null,null,null,null,null,null,null,null,null,null,null,null,{"$error":"#DIV/0!"},-90]
[null,null,null,null,null,null,null,null,null,null,null,null,null,{"$error":"#DIV/0!"},-90]
[null,null,null,null,null,null,null,null,null,null,null,null,null,{"$error":"#DIV/0!"},-90]
[null,null,null,null,null,null,null,null,null,null,null,null,null,{"$error":"#DIV/0!"},-90]
[null,null,null,null,null,null,null,null,null,null,null,null,null,{"$f":"ABS(I323/G323)","v":{"$error":"#DIV/0!"}},{"$f":"B323-90","v":-90}]
[null,null,null,null,null,null,null,null,null,null,null,null,null,{"$error":"#DIV/0!"},-90]
[null,null,null,null,null,null,null,null,null,null,null,null,null,{"$error":"#DIV/0!"},-90]
[null,null,null,null,null,null,null,null,null,null,null,null,null,{"$error":"#DIV/0!"},-90]
[null,null,null,null,null,null,null,null,null,null,null,null,null,{"$error":"#DIV/0!"},-90]
[null,null,null,null,null,null,null,null,null,null,null,null,null,{"$error":"#DIV/0!"},-90]
[null,null,null,null,null,null,null,null,null,null,null,null,null,{"$error":"#DIV/0!"},-90]
[null,null,null,null,null,null,null,null,null,null,null,null,null,{"$error":"#DIV/0!"},-90]
[null,null,null,null,null,null,null,null,null,null,null,null,null,{"$error":"#DIV/0!"},-90]
[null,null,null,null,null,null,null,null,null,null,null,null,null,{"$error":"#DIV/0!"},-90]
[null,null,null,null,null,null,null,null,null,null,null,null,null,{"$error":"#DIV/0!"},-90]
[null,null,null,null,null,null,null,null,null,null,null,null,null,{"$error":"#DIV/0!"}]
[null,null,null,null,null,null,null,null,null,null,null,null,null,{"$error":"#DIV/0!"}]
[null,null,null,null,null,null,null,null,null,null,null,null,null,{"$error":"#DIV/0!"}]
[null,null,null,null,null,null,null,null,null,null,null,null,null,{"$error":"#DIV/0!"}]
[null,null,null,null,null,null,null,null,null,null,null,null,null,{"$error":"#DIV/0!"}]
[null,null,null,null,null,null,null,null,null,null,null,null,null,{"$error":"#DIV/0!"}]
[null,null,null,null,null,null,null,null,null,null,null,null,null,{"$error":"#DIV/0!"}]
[null,null,null,null,null,null,null,null,null,null,null,null,null,{"$error":"#DIV/0!"}]
[null,null,null,null,null,null,null,null,null,null,null,null,null,{"$error":"#DIV/0!"}]
[null,null,null,null,null,null,null,null,null,null,null,null,null,{"$error":"#DIV/0!"}]
[null,null,null,null,null,null,null,null,null,null,null,null,null,{"$error":"#DIV/0!"}]
[null,null,null,null,null,null,null,null,null,null,null,null,null,{"$error":"#DIV/0!"}]
[null,null,null,null,null,null,null,null,null,null,null,null,null,{"$error":"#DIV/0!"}]
[null,null,null,null,null,null,null,null,null,null,null,null,null,{"$error":"#DIV/0!"}]
[null,null,null,null,null,null,null,null,null,null,null,null,null,{"$error":"#DIV/0!"}]
[null,null,null,null,null,null,null,null,null,null,null,null,null,{"$error":"#DIV/0!"}]
[null,null,null,null,null,null,null,null,null,null,null,null,null,{"$error":"#DIV/0!"}]
[null,null,null,null,null,null,null,null,null,null,null,null,null,{"$error":"#DIV/0!"}]
[null,null,null,null,null,null,null,null,null,null,null,null,null,{"$error":"#DIV/0!"}]
[null,null,null,null,null,null,null,null,null,null,null,null,null,{"$error":"#DIV/0!"}]
[null,null,null,null,null,null,null,null,null,null,null,null,null,{"$error":"#DIV/0!"}]
[null,null,null,null,null,null,null,null,null,null,null,null,null,{"$error":"#DIV/0!"}]
[null,null,null,null,null,null,null,null,null,null,null,null,null,{"$error":"#DIV/0!"}]
[null,null,null,null,null,null,null,null,null,null,null,null,null,{"$error":"#DIV/0!"}]
[null,null,null,null,null,null,null,null,null,null,null,null,null,{"$error":"#DIV/0!"}]
[null,null,null,null,null,null,null,null,null,null,null,null,null,{"$error":"#DIV/0!"}]
[null,null,null,null,null,null,null,null,null,null,null,null,null,{"$error":"#DIV/0!"}]
[null,null,null,null,null,null,null,null,null,null,null,null,null,{"$error":"#DIV/0!"}]
[null,null,null,null,null,null,null,null,null,null,null,null,null,{"$error":"#DIV/0!"}]
[null,null,null,null,null,null,null,null,null,null,null,null,null,{"$error":"#DIV/0!"}]
[null,null,null,null,null,null,null,null,null,null,null,null,null,{"$error":"#DIV/0!"}]
[null,null,null,null,null,null,null,null,null,null,null,null,null,{"$error":"#DIV/0!"}]
[null,null,null,null,null,null,null,null,null,null,null,null,null,{"$error":"#DIV/0!"}]
[null,null,null,null,null,null,null,null,null,null,null,null,null,{"$error":"#DIV/0!"}]
[null,null,null,null,null,null,null,null,null,null,null,null,null,{"$error":"#DIV/0!"}]
[null,null,null,null,null,null,null,null,null,null,null,null,null,{"$error":"#DIV/0!"}]
[null,null,null,null,null,null,null,null,null,null,null,null,null,{"$error":"#DIV/0!"}]
[null,null,null,null,null,null,null,null,null,null,null,null,null,{"$error":"#DIV/0!"}]
[null,null,null,null,null,null,null,null,null,null,null,null,null,{"$error":"#DIV/0!"}]
[null,null,null,null,null,null,null,null,null,null,null,null,null,{"$error":"#DIV/0!"}]
[null,null,null,null,null,null,null,null,null,null,null,null,null,{"$error":"#DIV/0!"}]
[null,null,null,null,null,null,null,null,null,null,null,null,null,{"$error":"#DIV/0!"}]
[null,null,null,null,null,null,null,null,null,null,null,null,null,{"$error":"#DIV/0!"}]
[null,null,null,null,null,null,null,null,null,null,null,null,null,{"$error":"#DIV/0!"}]
[null,null,null,null,null,null,null,null,null,null,null,null,null,{"$error":"#DIV/0!"}]
[null,null,null,null,null,null,null,null,null,null,null,null,null,{"$error":"#DIV/0!"}]
[null,null,null,null,null,null,null,null,null,null,null,null,null,{"$error":"#DIV/0!"}]